bitfinex/quotes_SOLUSD_20251025
["timestamp","ask_amount","ask_price","bid_price","bid_amount"]
[1761367073280,107.35830115,193.87,193.83,0.66]
[1761367073579,5.15936249,193.86,193.83,0.66]
[1761367077373,5.15936249,193.86,193.83,2.29783611]
[1761367077582,0.53005381,193.88,193.83,0.66]
[1761367077583,7.32582592,193.88,193.83,0.66]
[1761367077875,5.15936249,193.86,193.84,0.71]
[1761367078782,7.32582592,193.88,193.84,0.71]
[1761367079182,15.49386701,193.87,193.84,0.71]
[1761367081158,7.32582592,193.88,193.84,0.71]
[1761367081558,22.81969293,193.88,193.84,0.71]
[1761367082082,7.32582592,193.88,193.84,0.71]
[1761367082381,5.15936249,193.87,193.84,0.71]
[1761367082581,10.31747054,193.87,193.84,0.71]
[1761367084883,5.15936249,193.87,193.84,0.71]
[1761367085377,2.55649235,193.85,193.81,0.71]
[1761367085585,0.53005381,193.84,193.81,0.71]
[1761367086275,5.15994819,193.83,193.81,0.71]
[1761367093184,5.15994819,193.83,193.81,5.86965399]
[1761367093483,5.15994819,193.83,193.82,0.71]
[1761367111395,5.15994819,193.83,193.79,5.84016093]
[1761367111608,3.03649235,193.82,193.79,5.16016093]
[1761367112300,15.49786904,193.81,193.79,5.84016093]
[1761367112688,18.05436139,193.81,193.78,5.8404528]
[1761367113202,2.55649235,193.81,193.78,5.8404528]
[1761367113388,12.90278518,193.8,193.78,5.8404528]
[1761367115384,12.90278518,193.8,193.78,0.68]
[1761367115594,1.01005381,193.79,193.75,5.16103494]
[1761367115800,3.56654616,193.79,193.75,5.16103494]
[1761367116098,3.56654616,193.79,193.75,5.84103494]
[1761367116494,3.56654616,193.79,193.76,0.68]
[1761367116805,12.90278518,193.78,193.76,0.68]
[1761367119508,12.90278518,193.78,193.76,8.39749723]
[1761367119687,12.90278518,193.78,193.76,5.84100488]
[1761367120009,12.90278518,193.78,193.77,0.68]
[1761367121704,12.90278518,193.78,193.75,5.16129032]
[1761367121887,12.90278518,193.78,193.76,0.68]
[1761367122091,13.43283899,193.78,193.76,0.68]
[1761367122415,0.53005381,193.78,193.76,0.68]
[1761367122713,5.16129032,193.77,193.76,0.68]
[1761367126811,5.16129032,193.77,193.75,5.16129032]
[1761367127015,5.16129032,193.77,193.75,0.68]
[1761367127615,5.69134413,193.77,193.75,0.68]
[1761367127993,0.53005381,193.77,193.75,0.68]
[1761367128310,5.69134413,193.76,193.75,0.68]
[1761367128523,8.24783648,193.76,193.73,5.94176564]
[1761367128696,8.77789029,193.76,193.74,0.68]
[1761367128897,0.53005381,193.76,193.73,5.94176564]
[1761367129296,5.26176564,193.75,193.73,5.94176564]
[1761367130098,5.26176564,193.75,193.74,0.67]
[1761367130299,5.26176564,193.75,193.73,5.26176564]
[1761367130627,5.26176564,193.75,193.73,5.93176564]
[1761367131917,5.26176564,193.75,193.73,5.26176564]
[1761367132125,5.26176564,193.75,193.74,0.67]
[1761367150051,5.26176564,193.75,193.73,5.97176564]
[1761367150850,5.26176564,193.75,193.74,0.71]
[1761367152552,5.26176564,193.75,193.73,5.26176564]
[1761367152757,5.26176564,193.75,193.73,5.97176564]
[1761367152943,5.26176564,193.75,193.73,0.1]
[1761367154055,5.26176564,193.75,193.73,0.81]
[1761367155438,5.26176564,193.75,193.73,0.1]
[1761367155754,6.89970232,193.75,193.73,0.1]
[1761367156142,1.63793668,193.75,193.73,0.1]
[1761367156448,6.89970232,193.74,193.73,0.1]
[1761367156653,6.89970232,193.74,193.73,0.81]
[1761367158361,6.89970232,193.74,193.73,0.1]
[1761367159255,6.89970232,193.74,193.73,0.81]
[1761367164150,6.89970232,193.74,193.73,5.97182315]
[1761367173465,7.32854514,193.78,193.73,5.97182315]
[1761367173673,15.50107215,193.77,193.74,0.7]
[1761367175775,15.50107215,193.77,193.74,7.49945001]
[1761367176169,15.50107215,193.77,193.75,0.7]
[1761367182570,2.16799049,193.81,193.76,1.63793668]
[1761367182769,2.16799049,193.81,193.75,7.49920111]
[1761367183086,6.79945001,193.78,193.76,0.7]
[1761367183782,6.79945001,193.78,193.76,2.33793668]
[1761367183983,6.79945001,193.78,193.77,0.7]
[1761367186381,0.53005381,193.82,193.77,7.49869427]
[1761367186579,6.79945001,193.81,193.78,1.63793668]
[1761367186876,6.79945001,193.81,193.78,2.33793668]
[1761367187082,6.79945001,193.81,193.79,0.7]
[1761367197871,6.79945001,193.81,193.78,0.68]
[1761367202892,6.79945001,193.81,193.78,8.39826889]
[1761367203093,6.79945001,193.81,193.78,5.84045257]
[1761367203292,6.79945001,193.81,193.79,0.68]
[1761367204992,6.79945001,193.81,193.79,5.84018216]
[1761367205193,6.79945001,193.81,193.79,8.39799848]
[1761367205501,7.7166581,193.85,193.8,0.68]
[1761367205704,0.53005381,193.84,193.8,0.68]
[1761367205999,15.49626798,193.82,193.8,0.68]
[1761367206293,15.49626798,193.82,193.8,3.23781632]
[1761367206686,15.49626798,193.82,193.81,0.68]
[1761367209000,15.49626798,193.82,193.81,3.23781632]
[1761367209303,15.49626798,193.82,193.81,8.3975088]
[1761367212785,17.67303061,193.88,193.81,8.3975088]
[1761367212985,15.49386701,193.85,193.83,2.55781632]
[1761367213404,15.49386701,193.85,193.84,0.68]
[1761367217111,15.49386701,193.85,193.83,0.68]
[1761367217406,15.49386701,193.85,193.84,0.68]
[1761367218608,15.97386701,193.85,193.82,2.55781632]
[1761367219114,0.48,193.86,193.82,3.23781632]
[1761367219319,15.49386701,193.84,193.81,7.71747753]
[1761367219517,15.49386701,193.84,193.83,0.68]
[1761367228321,15.49386701,193.84,193.83,5.83916008]
[1761367228625,15.49386701,193.84,193.83,8.3969764]
[1761367235320,102.2,193.89,193.83,8.3969764]
[1761367235514,1.01005381,193.9,193.85,2.55781632]
[1761367235717,15.49226677,193.87,193.85,2.55781632]
[1761367235918,15.49226677,193.87,193.86,0.69]
[1761367240732,15.49226677,193.87,193.86,3.24781632]
[1761367242130,15.49226677,193.87,193.86,0.69]
[1761367242426,15.49226677,193.87,193.86,5.8483617]
[1761367242619,15.49226677,193.87,193.86,8.40617802]
[1761367243323,0.48,193.94,193.86,32.17855749]
[1761367243531,0.53005381,193.94,193.9,2.55781632]
[1761367243840,6.36610759,193.95,193.9,2.55781632]
[1761367244024,5.35598588,193.93,193.9,3.24781632]
[1761367244816,5.35598588,193.93,193.91,0.69]
[1761367246711,5.35598588,193.93,193.92,2.55781632]
[1761367246915,5.35598588,193.93,193.92,3.24781632]
[1761367247319,5.35598588,193.93,193.9,5.15729693]
[1761367247549,5.35598588,193.93,193.9,5.84729693]
[1761367250523,5.35598588,193.93,193.91,0.65]
[1761367252040,5.35598588,193.93,193.91,8.36476713]
[1761367252223,5.35598588,193.93,193.92,2.55781632]
[1761367252419,5.35598588,193.93,193.92,3.20781632]
[1761367254145,0.2,193.95,193.92,8.36458199]
[1761367254351,5.35598588,193.94,193.93,38.82781632]
[1761367255230,5.35598588,193.94,193.93,38.17781632]
[1761367255930,5.35598588,193.94,193.93,38.82781632]
[1761367256846,5.35598588,193.94,193.93,36.27]
[1761367259246,5.35598588,193.94,193.93,38.82781632]
[1761367259427,5.35598588,193.94,193.93,36.27]
[1761367259738,5.35598588,193.94,193.93,38.82781632]
[1761367262252,5.35598588,193.94,193.93,43.98431608]
[1761367262452,0.2,193.95,193.93,43.98431608]
[1761367262764,6.03544035,193.95,193.94,3.24781632]
[1761367264826,6.03544035,193.95,193.94,2.32419448]
[1761367266551,0.2,193.95,193.94,2.32419448]
[1761367269251,0.2,193.95,193.94,7.48042836]
[1761367270454,0.2,193.95,193.94,43.10042836]
[1761367273157,0.2,193.95,193.94,41.46623388]
[1761367277270,0.2,193.95,193.94,52.34270909]
[1761367285574,0.2,193.95,193.94,51.65270909]
[1761367285951,0.2,193.95,193.94,52.32270909]
[1761367286770,0.2,193.95,193.94,40.75623388]
[1761367287456,0.2,193.95,193.94,41.42623388]
[1761367288575,0.2,193.95,193.94,43.06042836]
[1761367289861,0.2,193.95,193.94,40.75623388]
[1761367290063,0.2,193.95,193.94,42.39042836]
[1761367290367,0.2,193.95,193.94,43.06042836]
[1761367296984,0.2,193.95,193.94,41.42623388]
[1761367297184,0.2,193.95,193.94,43.06042836]
[1761367297390,0.2,193.95,193.94,41.42623388]
[1761367297686,0.2,193.95,193.94,43.06042836]
[1761367301164,2.31419448,193.95,193.9,2.30419448]
[1761367301468,2.9445694,193.95,193.91,35.6]
[1761367301680,0.48,193.94,193.91,35.6]
[1761367302096,6.16579845,193.94,193.91,35.6]
[1761367302587,0.48,193.94,193.91,35.6]
[1761367302889,6.16579845,193.93,193.91,35.6]
[1761367304690,6.16579845,193.93,193.91,40.75699807]
[1761367305676,6.16579845,193.93,193.91,41.42699807]
[1761367307683,0.2,193.95,193.91,41.42699807]
[1761367307892,6.16579845,193.94,193.91,41.42699807]
[1761367308068,6.16579845,193.94,193.91,36.27]
[1761367308263,6.16579845,193.94,193.91,35.6]
[1761367308483,6.16579845,193.94,193.92,0.67]
[1761367308994,6.16579845,193.94,193.91,42.39119881]
[1761367309307,6.16579845,193.94,193.91,40.75700433]
[1761367309604,6.64579845,193.94,193.91,35.6]
[1761367309989,0.48,193.94,193.91,35.6]
[1761367310294,6.99016994,193.93,193.91,35.6]
[1761367313590,7.47016994,193.93,193.91,35.6]
[1761367313790,6.99016994,193.93,193.91,35.6]
[1761367314899,6.99016994,193.93,193.91,36.31]
[1761367321290,6.99016994,193.93,193.92,0.71]
[1761367321704,6.99016994,193.95,193.92,0.71]
[1761367321884,6.99016994,193.95,193.91,35.6]
[1761367322080,7.47016994,193.95,193.91,36.31]
[1761367322288,6.99016994,193.95,193.92,0.71]
[1761367322486,6.99016994,193.94,193.92,0.71]
[1761367323188,6.99016994,193.94,193.91,35.6]
[1761367323496,6.99016994,193.94,193.91,36.31]
[1761367325208,7.47016994,193.94,193.91,35.6]
[1761367325598,0.48,193.94,193.91,36.31]
[1761367325904,7.91055073,193.93,193.91,36.31]
[1761367326312,8.39055073,193.95,193.91,36.31]
[1761367326602,16.78110146,193.95,193.91,36.31]
[1761367328301,16.30110146,193.95,193.91,35.6]
[1761367328507,16.30110146,193.95,193.92,0.71]
[1761367328813,16.83115527,193.95,193.92,0.71]
[1761367329504,17.31115527,193.95,193.91,36.31]
[1761367329705,16.78110146,193.95,193.91,36.31]
[1761367330003,16.78110146,193.95,193.91,35.6]
[1761367330212,16.78110146,193.95,193.92,0.71]
[1761367330396,16.78110146,193.95,193.91,35.6]
[1761367330397,16.78110146,193.95,193.91,36.31]
[1761367337613,16.78110146,193.95,193.91,35.6]
[1761367337795,16.78110146,193.95,193.92,0.71]
[1761367339013,16.30110146,193.95,193.92,0.71]
[1761367339188,16.83115527,193.95,193.92,0.71]
[1761367340116,16.30110146,193.95,193.92,0.71]
[1761367340992,2.55457527,193.93,193.85,2.55457527]
[1761367341196,2.55457527,193.9,193.86,36.31]
[1761367341615,2.55457527,193.9,193.87,0.71]
[1761367342111,3.56462908,193.9,193.86,36.31]
[1761367342289,2.55457527,193.88,193.85,0.71]
[1761367343513,3.08462908,193.89,193.85,0.71]
[1761367346119,3.08462908,193.89,193.85,5.86857094]
[1761367346317,0.53005381,193.89,193.85,5.86857094]
[1761367346516,0.53005381,193.89,193.86,0.71]
[1761367346707,3.08462908,193.89,193.86,0.71]
[1761367351439,3.08462908,193.89,193.86,5.86833761]
[1761367356735,3.08462908,193.89,193.87,0.71]
[1761367372734,0.53005381,193.89,193.87,0.71]
[1761367372937,3.08462908,193.89,193.87,0.71]
[1761367374030,3.08462908,193.89,193.85,5.1586278]
[1761367374344,3.08462908,193.89,193.86,0.66]
[1761367376956,8.24219372,193.89,193.86,0.66]
[1761367377446,23.73446049,193.89,193.86,0.66]
[1761367378750,2.55457527,193.88,193.84,35.6]
[1761367379056,2.55457527,193.88,193.85,0.72]
[1761367379555,3.08462908,193.87,193.82,5.15936476]
[1761367379865,3.08462908,193.87,193.83,0.72]
[1761367379866,2.55457527,193.86,193.83,0.72]
[1761367380059,0.53005381,193.85,193.83,0.72]
[1761367380438,2.55457527,193.85,193.82,0.72]
[1761367380744,18.05004284,193.85,193.82,0.72]
[1761367380943,3.08462908,193.84,193.79,5.16022312]
[1761367381134,2.55457527,193.81,193.78,0.72]
[1761367381542,3.08462908,193.8,193.77,35.62]
[1761367381843,3.08462908,193.8,193.77,36.34]
[1761367382037,2.55457527,193.79,193.78,0.72]
[1761367383354,23.74249629,193.8,193.78,0.72]
[1761367384959,22.82538846,193.8,193.78,0.72]
[1761367385166,1.63746744,193.79,193.77,36.34]
[1761367385455,1.63746744,193.79,193.77,0.72]
[1761367385852,0.53005381,193.78,193.76,0.72]
[1761367386259,5.79210882,193.78,193.76,0.72]
[1761367386766,0.53005381,193.78,193.76,0.72]
[1761367387263,7.32807712,193.78,193.76,0.72]
[1761367387560,7.95963007,193.8,193.76,0.72]
[1761367387749,2.16752125,193.8,193.76,0.72]
[1761367387950,1.63746744,193.79,193.76,0.72]
[1761367389082,6.79781652,193.79,193.76,0.72]
[1761367390674,5.16034908,193.79,193.76,0.72]
[1761367398388,6.79781652,193.79,193.76,0.72]
[1761367403689,0.53005381,193.78,193.76,0.72]
[1761367403882,6.79781652,193.79,193.76,0.72]
[1761367404075,0.53005381,193.78,193.76,0.72]
[1761367406086,6.79781652,193.79,193.76,0.72]
[1761367406586,5.69067324,193.78,193.76,0.72]
[1761367408283,5.16061943,193.78,193.76,0.72]
[1761367409887,1.63746744,193.79,193.76,0.72]
[1761367410190,0.53005381,193.79,193.76,0.72]
[1761367411966,5.69042956,193.79,193.76,0.72]
[1761367412169,102.2,193.83,193.78,1.63746744]
[1761367412385,107.35918966,193.83,193.79,1.63746744]
[1761367412867,107.35918966,193.83,193.8,0.72]
[1761367413378,0.53005381,193.82,193.8,0.72]
[1761367413777,107.35918966,193.83,193.8,0.72]
[1761367414285,5.68959233,193.82,193.8,0.72]
[1761367415272,5.15953852,193.82,193.8,0.72]
[1761367415592,107.35916466,193.83,193.8,0.72]
[1761367415788,102.2,193.83,193.8,0.72]
[1761367416094,102.2,193.83,193.8,7.51742193]
[1761367416591,102.2,193.83,193.81,0.72]
[1761367417174,5.15871178,193.85,193.81,0.72]
[1761367420904,2.16752125,193.87,193.81,7.51712291]
[1761367421404,2.16752125,193.87,193.82,0.72]
[1761367422491,7.32565173,193.87,193.82,0.72]
[1761367422996,1.63746744,193.85,193.82,0.72]
[1761367423379,6.79588419,193.86,193.82,0.72]
[1761367427399,1.63746744,193.85,193.82,0.72]
[1761367430016,5.15841675,193.86,193.82,0.72]
[1761367438300,0.53005381,193.9,193.83,1.63746744]
[1761367438499,1.63746744,193.89,193.83,1.63746744]
[1761367438707,1.63746744,193.89,193.84,0.71]
[1761367439119,2.16752125,193.88,193.84,0.71]
[1761367439822,0.53005381,193.88,193.84,0.71]
[1761367440195,5.68796777,193.88,193.84,0.71]
[1761367440402,7.32543521,193.88,193.84,0.71]
[1761367441529,1.63746744,193.87,193.84,0.71]
[1761367442114,5.68796777,193.88,193.84,0.71]
[1761367442427,7.32543521,193.88,193.84,0.71]
[1761367446333,1.63746744,193.87,193.84,0.71]
[1761367446726,2.5565568,193.87,193.84,0.71]
[1761367447334,8.19470307,193.87,193.83,0.71]
[1761367447511,2.5565568,193.86,193.83,0.71]
[1761367448206,2.5565568,193.85,193.83,0.71]
[1761367449609,2.5565568,193.86,193.83,0.71]
[1761367449814,3.08661061,193.86,193.83,0.71]
[1761367451130,2.5565568,193.86,193.83,0.71]
[1761367457337,8.24475688,193.87,193.83,0.71]
[1761367462051,2.5565568,193.86,193.83,0.71]
[1761367468761,7.7149664,193.86,193.83,0.71]
[1761367469370,2.5565568,193.84,193.79,23.56]
[1761367469556,3.08661061,193.83,193.8,0.68]
[1761367469866,2.5565568,193.83,193.8,0.68]
[1761367470174,2.5565568,193.81,193.8,0.68]
[1761367470364,2.5565568,193.81,193.79,0.68]
[1761367473564,2.5565568,193.81,193.76,43.31755188]
[1761367473767,8.19633918,193.81,193.77,0.68]
[1761367473969,2.5565568,193.8,193.77,0.68]
[1761367474474,3.08661061,193.8,193.77,0.68]
[1761367475451,8.2466427,193.8,193.77,0.68]
[1761367482850,5.6900859,193.8,193.77,0.68]
[1761367483657,0.53005381,193.8,193.77,5.84070356]
[1761367483974,3.08661061,193.82,193.77,8.39726036]
[1761367484152,8.24608049,193.82,193.78,0.68]
[1761367486278,7.71627609,193.81,193.78,0.68]
[1761367497081,5.15971929,193.81,193.78,0.68]
[1761367497382,5.6897731,193.81,193.78,0.68]
[1761367498184,5.15971929,193.81,193.78,0.68]
[1761367502193,8.24604189,193.82,193.78,0.68]
[1761367506696,5.68948509,193.82,193.78,0.68]
[1761367506874,5.68926853,193.83,193.78,8.39704454]
[1761367507584,5.68926853,193.83,193.79,0.71]
[1761367507585,8.24582533,193.83,193.79,0.71]
[1761367508793,7.32617981,193.83,193.79,0.71]
[1761367515996,1.63691128,193.82,193.79,0.71]
[1761367516200,5.15921472,193.83,193.79,0.71]
[1761367517500,5.68926853,193.83,193.79,0.71]
[1761367521092,7.32617981,193.83,193.79,0.71]
[1761367527798,5.68926853,193.83,193.79,0.71]
[1761367530802,7.32617981,193.83,193.79,0.71]
[1761367532802,12.48665444,193.83,193.79,0.71]
[1761367539596,7.32617981,193.83,193.79,0.71]
[1761367545228,5.68926853,193.83,193.79,0.71]
[1761367545425,7.32617981,193.83,193.79,0.71]
[1761367546918,12.48665444,193.83,193.79,0.71]
[1761367551720,7.32617981,193.83,193.79,0.71]
[1761367554023,107.36047463,193.84,193.79,5.87022347]
[1761367554226,0.53005381,193.83,193.8,0.72]
[1761367555914,5.68925802,193.83,193.8,0.72]
[1761367556099,7.3261693,193.83,193.8,0.72]
[1761367560124,5.15920421,193.83,193.8,0.72]
[1761367560434,5.68925802,193.83,193.8,0.72]
[1761367561030,0.53005381,193.83,193.8,7.51679572]
[1761367561243,0.53005381,193.89,193.82,1.63691128]
[1761367561410,5.15736979,193.9,193.86,1.63691128]
[1761367561714,7.32433488,193.9,193.87,3.85921367]
[1761367561902,7.32433488,193.9,193.88,3.85921367]
[1761367562102,7.32433488,193.9,193.89,3.85921367]
[1761367562313,7.80433488,193.9,193.89,3.85921367]
[1761367562719,7.80433488,193.9,193.84,5.86875519]
[1761367562933,1.63691128,193.88,193.84,5.86875519]
[1761367563138,2.16696509,193.88,193.84,5.86875519]
[1761367563316,2.16696509,193.88,193.85,0.71]
[1761367563517,0.53005381,193.88,193.85,0.71]
[1761367564206,1.63691128,193.86,193.81,1.63691128]
[1761367564406,1.63691128,193.86,193.82,0.71]
[1761367564845,2.16696509,193.86,193.82,0.71]
[1761367566340,2.16696509,193.86,193.82,5.86934821]
[1761367566836,2.16696509,193.86,193.83,0.71]
[1761367568037,2.64696509,193.87,193.83,0.71]
[1761367568537,1.01005381,193.87,193.83,0.71]
[1761367570040,0.53005381,193.87,193.83,8.42573899]
[1761367570239,0.53005381,193.87,193.83,5.86908519]
[1761367570427,0.53005381,193.87,193.84,0.71]
[1761367572351,0.53005381,193.88,193.84,8.42545504]
[1761367572521,0.53005381,193.9,193.86,2.5566538]
[1761367572725,0.53005381,193.9,193.87,2.5566538]
[1761367573132,0.53005381,193.9,193.88,0.71]
[1761367578843,20.94593022,193.91,193.88,0.71]
[1761367579049,0.53005381,193.9,193.88,0.71]
[1761367580138,20.94593022,193.91,193.88,0.71]
[1761367581045,13.23219161,193.91,193.88,0.71]
[1761367586859,18.38927429,193.91,193.88,0.71]
[1761367588852,0.53005381,193.92,193.88,0.71]
[1761367589055,2.5566538,193.92,193.88,0.71]
[1761367589245,3.08670761,193.91,193.88,0.71]
[1761367589662,2.5566538,193.89,193.84,0.66]
[1761367589851,2.5566538,193.86,193.83,5.81893752]
[1761367590054,2.5566538,193.86,193.83,0.66]
[1761367590256,2.5566538,193.86,193.84,0.66]
[1761367590558,3.08670761,193.85,193.82,0.66]
[1761367590758,2.5566538,193.84,193.82,0.66]
[1761367592044,2.5566538,193.85,193.82,5.81932812]
[1761367592865,2.5566538,193.85,193.83,0.66]
[1761367596765,3.08670761,193.84,193.81,0.66]
[1761367598568,2.5566538,193.84,193.81,0.66]
[1761367600567,3.08670761,193.85,193.81,0.66]
[1761367601470,8.24537276,193.85,193.81,0.66]
[1761367609068,0.53005381,193.85,193.81,5.8195495]
[1761367609275,0.53005381,193.86,193.81,8.3762033]
[1761367609469,0.53005381,193.86,193.82,0.66]
[1761367609775,7.71500133,193.87,193.82,0.66]
[1761367610375,0.53005381,193.86,193.82,5.81936037]
[1761367610577,0.53005381,193.86,193.83,0.66]
[1761367611980,7.71500133,193.87,193.83,0.66]
[1761367612580,0.53005381,193.86,193.83,0.66]
[1761367613077,7.71500133,193.87,193.83,0.66]
[1761367613577,0.53005381,193.86,193.83,0.66]
[1761367615978,3.08670761,193.86,193.83,0.66]
[1761367616179,2.5566538,193.86,193.83,0.66]
[1761367616564,0.53005381,193.9,193.84,2.5566538]
[1761367616762,0.53005381,193.9,193.85,0.66]
[1761367617285,3.08670761,193.9,193.85,0.66]
[1761367617666,3.08670761,193.9,193.86,3.85066396]
[1761367617868,5.68737933,193.9,193.87,3.85066396]
[1761367618068,5.68737933,193.9,193.88,3.85066396]
[1761367618280,5.68737933,193.9,193.86,0.67]
[1761367618493,6.16737933,193.9,193.87,3.85058417]
[1761367618658,5.68737933,193.9,193.88,3.85058417]
[1761367618861,5.68737933,193.9,193.85,5.15849618]
[1761367619059,2.5566538,193.88,193.86,3.85062672]
[1761367619262,3.08670761,193.88,193.87,3.85062672]
[1761367619486,3.56670761,193.88,193.84,0.67]
[1761367620268,8.72456674,193.88,193.84,0.67]
[1761367621190,6.16791294,193.88,193.84,0.67]
[1761367621992,5.68791294,193.88,193.84,0.67]
[1761367625490,5.68791294,193.88,193.84,5.82888214]
[1761367625995,5.68791294,193.88,193.85,0.67]
[1761367629406,6.16791294,193.88,193.85,0.67]
[1761367629621,6.16791294,193.88,193.81,5.15950203]
[1761367629785,0.48,193.87,193.81,0.67]
[1761367630117,0.53005381,193.86,193.81,0.67]
[1761367630300,1.01005381,193.86,193.81,0.67]
[1761367630910,6.1685319,193.86,193.81,0.67]
[1761367631812,7.80512869,193.86,193.81,0.67]
[1761367634811,1.63659679,193.85,193.81,0.67]
[1761367636614,6.79523049,193.85,193.81,0.67]
[1761367637014,1.63659679,193.83,193.79,36.27]
[1761367637401,2.11659679,193.83,193.79,36.27]
[1761367637912,2.11659679,193.83,193.8,0.67]
[1761367638617,1.63659679,193.83,193.8,0.67]
[1761367639206,7.32563195,193.84,193.8,0.67]
[1761367640020,7.80563195,193.84,193.8,0.72]
[1761367640707,7.32563195,193.84,193.8,0.72]
[1761367643119,7.80563195,193.84,193.8,0.72]
[1761367643323,7.32563195,193.84,193.8,0.72]
[1761367644510,2.11659679,193.83,193.78,0.72]
[1761367644710,0.53005381,193.82,193.79,0.72]
[1761367645112,2.6466506,193.83,193.79,0.72]
[1761367645924,7.32601236,193.83,193.79,0.72]
[1761367647707,0.48,193.82,193.77,28.04069052]
[1761367648025,0.48,193.82,193.78,0.72]
[1761367648214,2.1666506,193.81,193.78,0.72]
[1761367650231,5.15995872,193.8,193.78,0.72]
[1761367652242,0.53005381,193.79,193.76,0.72]
[1761367652441,1.63659679,193.78,193.74,0.72]
[1761367652620,2.1666506,193.77,193.73,0.82]
[1761367653851,5.16102394,193.76,193.73,0.82]
[1761367654827,5.16075759,193.77,193.73,0.82]
[1761367655027,0.53005381,193.76,193.73,0.82]
[1761367656847,5.69124205,193.76,193.73,0.82]
[1761367658431,5.16118824,193.76,193.73,0.82]
[1761367658631,5.16118824,193.76,193.73,2.45659679]
[1761367659049,5.16075759,193.77,193.73,2.45659679]
[1761367659252,5.16075759,193.77,193.74,0.72]
[1761367660542,0.53005381,193.78,193.74,0.72]
[1761367660844,0.53005381,193.79,193.74,0.72]
[1761367661045,5.69031863,193.79,193.74,0.72]
[1761367661426,6.17031863,193.79,193.74,0.72]
[1761367661627,7.80691542,193.79,193.74,0.72]
[1761367662233,7.32691542,193.79,193.74,0.72]
[1761367663245,0.53005381,193.79,193.76,1.63659679]
[1761367663459,104.26691641,193.82,193.78,1.63659679]
[1761367663634,2.06691641,193.82,193.8,1.63659679]
[1761367663955,5.6889902,193.84,193.8,1.63659679]
[1761367664155,5.6889902,193.84,193.81,0.72]
[1761367664536,5.6889902,193.84,193.79,0.72]
[1761367664848,5.6889902,193.84,193.79,2.35659679]
[1761367665046,5.68868864,193.85,193.8,1.63659679]
[1761367665256,5.68868864,193.85,193.8,2.35659679]
[1761367665435,5.68868864,193.85,193.81,0.72]
[1761367669831,6.16868864,193.85,193.81,0.72]
[1761367670032,0.48,193.84,193.8,0.68]
[1761367670242,0.53005381,193.83,193.8,0.68]
[1761367670936,0.53005381,193.83,193.79,0.68]
[1761367671236,7.805918,193.83,193.79,0.68]
[1761367671431,0.53005381,193.86,193.79,2.31659679]
[1761367671626,2.1666506,193.86,193.79,2.31659679]
[1761367671831,2.6466506,193.86,193.8,0.68]
[1761367672457,7.8050123,193.86,193.8,0.68]
[1761367673544,7.3250123,193.86,193.8,7.47653191]
[1761367673740,5.68841551,193.86,193.8,7.47653191]
[1761367673941,5.68841551,193.86,193.81,0.68]
[1761367676442,7.3250123,193.86,193.81,0.68]
[1761367680364,5.68841551,193.86,193.81,0.68]
[1761367680548,5.68841551,193.86,193.81,2.31659679]
[1761367680955,5.68841551,193.86,193.82,0.67]
[1761367682172,5.68841551,193.86,193.82,2.30659679]
[1761367682775,0.53005381,193.87,193.82,5.8293985]
[1761367682950,5.6876327,193.89,193.84,1.63659679]
[1761367683349,5.6876327,193.89,193.85,0.67]
[1761367683968,0.53005381,193.88,193.85,0.67]
[1761367685581,5.15757889,193.89,193.85,0.67]
[1761367686575,5.68736839,193.9,193.85,7.46522424]
[1761367686956,5.68736839,193.9,193.86,0.67]
[1761367687982,35.64,193.91,193.86,5.82832458]
[1761367688171,5.15700882,193.92,193.87,0.67]
[1761367688352,5.15700882,193.92,193.87,2.30659679]
[1761367688972,5.15700882,193.92,193.88,0.67]
[1761367692506,23.41005381,193.93,193.88,0.67]
[1761367692697,23.41005381,193.93,193.88,5.82770873]
[1761367693000,0.53005381,193.94,193.89,0.67]
[1761367693905,5.68629799,193.94,193.89,5.82755973]
[1761367694094,5.68629799,193.94,193.9,0.67]